fUST/lending_fUST_20260109
["ID","MTS","AMOUNT","RATE_DAILY","PERIOD"]
[401026048,1767888647646,-298.54993556,0.00018356,2]
[401026049,1767888647655,-4592.0276856,0.00018435,2]
[401026050,1767888647664,-5000.0,0.0001863,2]
[401026051,1767888647674,-2395.64095761,0.0001863,2]
[401026052,1767888647685,-5000.0,0.0001863,2]
[401026053,1767888647695,-3162.0,0.00018659,2]
[401026054,1767888647704,-6403.0,0.00018662,2]
[401026055,1767888647714,-5500.0,0.00018752,2]
[401026056,1767888647724,-5403.18556089,0.00018883,2]
[401026057,1767888647733,-1167.21136956,0.00019178,2]
[401026058,1767888647744,-5500.0,0.00019178,2]
[401026059,1767888647753,-20550.55,0.000192,2]
[401026060,1767888647763,-167.4,0.000192,2]
[401026061,1767888647773,-1000.0,0.00019225,2]
[401026062,1767888647782,-1000.0,0.00019225,2]
[401026063,1767888647792,-163.27,0.000193,2]
[401026064,1767888647801,-164.69,0.000193,2]
[401026065,1767888647810,-1502.08,0.000193,2]
[401026066,1767888647820,-2031.92126105,0.000193,2]
[401026067,1767888647829,-253.19474322,0.00019452,3]
[401026068,1767888647838,-1068.06413754,0.00019578,2]
[401026069,1767888647848,-6000.0,0.00019726,2]
[401026070,1767888647858,-1003.0,0.0002,2]
[401026071,1767888647868,-300.26582625,0.0002,2]
[401026072,1767888647878,-476.9,0.00020034,2]
[401026073,1767888647888,-1041.66666667,0.00020112,2]
[401026074,1767888647899,-160.0,0.00020112,2]
[401026075,1767888647909,-6500.0,0.00020274,2]
[401026076,1767888647919,-2000.0,0.00020495,7]
[401026077,1767888647930,-4427.0,0.00020525,2]
[401026078,1767888647939,-207.0,0.00020548,3]
[401026079,1767888647950,-7000.0,0.00020822,2]
[401026080,1767888647960,-2000.0,0.00020971,7]
[401026081,1767888647971,-987.26,0.00021,7]
[401026082,1767888647981,-160.18626186,0.00021031,2]
[401026083,1767888647990,-1000.0,0.00021147,10]
[401026084,1767888648000,-1000.0,0.00021147,10]
[401026085,1767888648009,-579.0,0.00021147,10]
[401026086,1767888648019,-20550.55,0.000212,2]
[401026087,1767888648029,-1896.32369959,0.0002124,2]
[401026088,1767888648038,-476.9,0.00021241,2]
[401026089,1767888648048,-2884.88182039,0.0002137,2]
[401026090,1767888648058,-2000.0,0.00021446,7]
[401026091,1767888648068,-5403.18556089,0.00021526,2]
[401026092,1767888648078,-1169.2491611,0.00021578,2]
[401026093,1767888648089,-208.0,0.00021644,5]
[401026094,1767888648099,-151.17138734,0.00021918,2]
[401026095,1767888648109,-2000.0,0.00021921,7]
[401026096,1767888648119,-316.0706166,0.00022319,16]
[401026097,1767888648128,-2000.0,0.00022396,7]
[401026098,1767888648138,-2000.51544348,0.00022413,2]
[401026099,1767888648148,-476.9,0.00022447,2]
[401026100,1767888648158,-875.15,0.000225,7]
[401026101,1767888648168,-6198.0,0.00022577,2]
[401026102,1767888648178,-210.0,0.0002274,8]
[401026103,1767888648188,-4592.0276856,0.00022866,2]
[401026104,1767888648197,-2000.0,0.00022872,7]
[401026105,1767888648208,-1041.66666667,0.00023,3]
[401026106,1767888648218,-1000.0,0.00023262,10]
[401026107,1767888648228,-1000.0,0.00023262,10]
[401026108,1767888648238,-1000.0,0.00023262,10]
[401026109,1767888648247,-536.35,0.000233,2]
[401026110,1767888648258,-2000.0,0.00023347,7]
[401026111,1767888648268,-172.18,0.00023367,2]
[401026113,1767888648279,-316.0706166,0.00023399,17]
[401026115,1767888648289,-1270.43418466,0.00023578,2]
[401026116,1767888648299,-2373.26906487,0.00023634,2]
[401026117,1767888648308,-476.9,0.00023654,2]
[401026118,1767888648322,-2000.0,0.00023822,7]
[401026119,1767888648331,-211.0,0.00023836,11]
[401026120,1767888648341,-5000.0,0.00023858,2]
[401026121,1767888648351,-2373.26906487,0.00023961,2]
[401026122,1767888648362,-1041.66666667,0.00024,7]
[401026123,1767888648371,-5403.18556089,0.00024169,2]
[401026124,1767888648381,-2373.26906487,0.00024288,2]
[401026125,1767888648394,-2000.0,0.00024297,7]
[401026126,1767888648404,-316.0706166,0.00024478,19]
[401026127,1767888648414,-2373.26906487,0.0002458,2]
[401026128,1767888648424,-875.15,0.000246,7]
[401026129,1767888648434,-622.20825,0.00024658,2]
[401026130,1767888648444,-622.20825,0.00024658,2]
[401026131,1767888648453,-622.20825,0.00024658,2]
[401026132,1767888648464,-622.20825,0.00024658,2]
[401026133,1767888648475,-289.370538,0.00024658,2]
[401026134,1767888648486,-289.370538,0.00024658,2]
[401026135,1767888648496,-388.092813,0.00024658,2]
[401026136,1767888648506,-289.370538,0.00024658,2]
[401026137,1767888648516,-388.092813,0.00024658,2]
[401026138,1767888648525,-289.370538,0.00024658,2]
[401026139,1767888648536,-388.092813,0.00024658,2]
[401026140,1767888648546,-388.092813,0.00024658,2]
[401026141,1767888648556,-303.930909,0.00024658,2]
[401026142,1767888648565,-303.930909,0.00024658,2]
[401026143,1767888648576,-303.930909,0.00024658,2]
[401026144,1767888648586,-303.930909,0.00024658,2]
[401026145,1767888648596,-151.0,0.00024658,2]
[401026146,1767888648606,-151.0,0.00024658,2]
[401026147,1767888648615,-184.679172,0.00024658,2]
[401026148,1767888648625,-380.0,0.00024658,2]
[401026149,1767888648635,-151.0,0.00024658,2]
[401026150,1767888648645,-151.0,0.00024658,2]
[401026151,1767888648655,-151.0,0.00024658,2]
[401026152,1767888648665,-151.0,0.00024658,2]
[401026153,1767888648676,-179.188398,0.00024658,2]
[401026154,1767888648685,-151.0,0.00024658,2]
[401026155,1767888648696,-262.112916,0.00024658,2]
[401026157,1767888648706,-191.094302,0.00024658,2]
[401026158,1767888648716,-151.58214,0.00024658,2]
[401026160,1767888648726,-151.0,0.00024658,2]
[401026161,1767888648736,-191.094302,0.00024658,2]
[401026162,1767888648746,-1439.873322,0.00024658,2]
[401026163,1767888648756,-151.0,0.00024658,2]
[401026164,1767888648766,-191.094302,0.00024658,2]
[401026165,1767888648775,-1439.873322,0.00024658,2]
[401026166,1767888648786,-151.0,0.00024658,2]
[401026167,1767888648796,-191.094302,0.00024658,2]
[401026168,1767888648805,-1439.873322,0.00024658,2]
[401026169,1767888648815,-1439.873322,0.00024658,2]
[401026170,1767888648826,-151.0,0.00024658,2]
[401026171,1767888648835,-3000.0,0.000247,2]
[401026172,1767888648846,-163.27,0.000247,7]
[401026173,1767888648855,-164.69,0.000247,7]
[401026174,1767888648866,-1502.08,0.000247,14]
[401026175,1767888648876,-35714.28,0.000247,3]
[401026176,1767888648886,-3000.0,0.0002471,2]
[401026177,1767888648896,-3000.0,0.0002472,2]
[401026178,1767888648906,-3000.0,0.0002473,2]
[401026179,1767888648916,-3000.0,0.0002474,2]
[401026180,1767888648926,-3000.0,0.0002475,2]
[401026181,1767888648936,-3000.0,0.0002476,2]
[401026182,1767888648946,-3000.0,0.0002477,2]
[401026183,1767888648956,-2000.0,0.00024772,7]
[401026184,1767888648965,-3000.0,0.0002478,2]
[401026185,1767888648976,-3000.0,0.0002479,2]
[401026186,1767888648985,-3000.0,0.000248,2]
[401026187,1767888648995,-151.0,0.000248,7]
[401026188,1767888649005,-341.324064,0.000248,7]
[401026189,1767888649015,-341.324064,0.000248,7]
[401026190,1767888649025,-341.324064,0.000248,7]
[401026191,1767888649034,-341.324064,0.000248,7]
[401026192,1767888649044,-522.121584,0.000248,7]
[401026193,1767888649054,-1222.595979,0.000248,7]
[401026194,1767888649065,-522.121584,0.000248,7]
[401026195,1767888649074,-1222.595979,0.000248,7]
[401026196,1767888649084,-1222.595979,0.000248,7]
[401026197,1767888649094,-522.121584,0.000248,7]
[401026198,1767888649103,-1222.595979,0.000248,7]
[401026199,1767888649113,-522.121584,0.000248,7]
[401026200,1767888649123,-151.0,0.000248,7]
[401026201,1767888649133,-151.0,0.000248,7]
[401026202,1767888649142,-151.0,0.000248,7]
[401026203,1767888649152,-183.558633,0.000248,7]
[401026204,1767888649161,-183.558633,0.000248,7]
[401026205,1767888649173,-183.558633,0.000248,7]
[401026206,1767888649183,-183.558633,0.000248,7]
[401026207,1767888649194,-151.0,0.000248,7]
[401026208,1767888649204,-151.0,0.000248,7]
[401026209,1767888649214,-151.0,0.000248,7]
[401026210,1767888649224,-103900.341014,0.000248,2]
[401026211,1767888649234,-757.340513,0.000248,7]
[401026212,1767888649243,-757.340513,0.000248,7]
[401026213,1767888649253,-757.340513,0.000248,7]
[401026214,1767888649263,-757.340513,0.000248,7]
[401026215,1767888649274,-248.949077,0.000248,7]
[401026216,1767888649284,-248.949077,0.000248,7]
[401026217,1767888649294,-248.949077,0.000248,7]
[401026218,1767888649304,-248.949077,0.000248,7]
[401026219,1767888649314,-209.694433,0.000248,7]
[401026220,1767888649329,-151.0,0.000248,7]
[401026221,1767888649338,-2391.210697,0.000248,7]
[401026222,1767888649349,-2391.210697,0.000248,7]
[401026223,1767888649359,-151.0,0.000248,7]
[401026224,1767888649368,-2391.210697,0.000248,7]
[401026225,1767888649377,-151.0,0.000248,7]
[401026226,1767888649386,-2391.210697,0.000248,7]
[401026227,1767888649397,-151.0,0.000248,7]
[401026228,1767888649408,-172.705914,0.000248,7]
[401026229,1767888649417,-151.0,0.000248,7]
[401026230,1767888649427,-172.705914,0.000248,7]
[401026231,1767888649437,-172.705914,0.000248,7]
[401026232,1767888649447,-172.705914,0.000248,7]
[401026233,1767888649457,-151.0,0.000248,7]
[401026234,1767888649467,-151.0,0.000248,7]
[401026235,1767888649477,-151.0,0.000248,7]
[401026236,1767888649487,-182.749737,0.000248,7]
[401026237,1767888649497,-232.721507,0.000248,7]
[401026238,1767888649506,-182.749737,0.000248,7]
[401026239,1767888649516,-182.749737,0.000248,7]
[401026240,1767888649525,-182.749737,0.000248,7]
[401026241,1767888649534,-1019.38172467,0.00024803,2]
[401026242,1767888649543,-4073.44937177,0.00024803,2]
[401026243,1767888649553,-3000.0,0.0002481,2]
[401026244,1767888649563,-3000.0,0.0002482,2]
[401026245,1767888649572,-3000.0,0.0002483,2]
[401026246,1767888649581,-668.0,0.00024835,2]
[401026247,1767888649591,-3000.0,0.0002484,2]
[401026248,1767888649600,-3000.0,0.0002485,2]
[401026249,1767888649609,-2373.26906487,0.00024859,2]
[401026250,1767888649619,-3000.0,0.0002486,2]
[401026251,1767888649628,-476.9,0.00024861,2]
[401026252,1767888649637,-3000.0,0.0002487,2]
[401026253,1767888649646,-3000.0,0.0002488,2]
[401026254,1767888649656,-3000.0,0.0002489,2]
[401026255,1767888649665,-3000.0,0.000249,2]
[401026256,1767888649675,-250.0,0.000249,2]
[401026257,1767888649685,-250.4,0.000249,2]
[401026258,1767888649695,-20550.55,0.000249,2]
[401026259,1767888649704,-151.0,0.000249,7]
[401026260,1767888649715,-151.0,0.000249,7]
[401026261,1767888649725,-298.474692,0.000249,7]
[401026262,1767888649735,-151.0,0.000249,7]
[401026263,1767888649745,-288.938246,0.000249,7]
[401026264,1767888649755,-151.0,0.000249,7]
[401026265,1767888649766,-151.0,0.000249,7]
[401026266,1767888649775,-168.916695,0.000249,7]
[401026267,1767888649785,-151.0,0.000249,7]
[401026268,1767888649794,-151.0,0.000249,7]
[401026269,1767888649804,-151.0,0.000249,7]
[401026270,1767888649814,-151.0,0.000249,7]
[401026271,1767888649823,-151.0,0.000249,7]
[401026272,1767888649833,-151.0,0.000249,7]
[401026273,1767888649844,-151.0,0.000249,7]
[401026274,1767888649854,-151.0,0.000249,7]
[401026275,1767888649864,-465.027669,0.000249,7]
[401026276,1767888649873,-465.027669,0.000249,7]
[401026277,1767888649883,-465.027669,0.000249,7]
[401026278,1767888649892,-465.027669,0.000249,7]
[401026279,1767888649903,-210.013186,0.000249,7]
[401026280,1767888649913,-151.0,0.000249,7]
[401026281,1767888649923,-151.0,0.000249,7]
[401026282,1767888649933,-151.0,0.000249,7]
[401026283,1767888649943,-625.10994,0.000249,7]
[401026284,1767888649954,-625.10994,0.000249,7]
[401026285,1767888649964,-625.10994,0.000249,7]
[401026286,1767888649975,-625.10994,0.000249,7]
[401026287,1767888649985,-622.20825,0.000249,7]
[401026288,1767888649995,-622.20825,0.000249,7]
[401026289,1767888650005,-622.20825,0.000249,7]
[401026290,1767888650016,-622.20825,0.000249,7]
[401026291,1767888650026,-289.370538,0.000249,7]
[401026292,1767888650036,-289.370538,0.000249,7]
[401026293,1767888650047,-388.092813,0.000249,7]
[401026294,1767888650057,-289.370538,0.000249,7]
[401026295,1767888650067,-388.092813,0.000249,7]
[401026296,1767888650077,-289.370538,0.000249,7]
[401026297,1767888650086,-388.092813,0.000249,7]
[401026298,1767888650097,-388.092813,0.000249,7]
[401026299,1767888650106,-303.930909,0.000249,7]
[401026300,1767888650117,-303.930909,0.000249,7]
[401026301,1767888650128,-303.930909,0.000249,7]
[401026302,1767888650138,-303.930909,0.000249,7]
[401026303,1767888650148,-151.0,0.000249,7]
[401026304,1767888650301,-151.0,0.000249,7]
[401026305,1767888650312,-643721.038142,0.000249,2]
[401026306,1767888650327,-151.0,0.000249,7]
[401026307,1767888650336,-151.0,0.000249,2]
[401026308,1767888650346,-151.0,0.000249,7]
[401026309,1767888650355,-151.0,0.000249,7]
[401026310,1767888650367,-151.858704,0.000249,7]
[401026311,1767888650377,-191.094302,0.000249,7]
[401026312,1767888650386,-151.0,0.000249,7]
[401026313,1767888650399,-191.094302,0.000249,7]
[401026314,1767888650408,-1439.873322,0.000249,7]
[401026315,1767888650418,-151.0,0.000249,7]
[401026316,1767888650428,-1439.873322,0.000249,7]
[401026317,1767888650438,-191.094302,0.000249,7]
[401026318,1767888650448,-151.0,0.000249,7]
[401026319,1767888650458,-191.094302,0.000249,7]
[401026320,1767888650467,-1439.873322,0.000249,7]
[401026321,1767888650477,-1439.873322,0.000249,7]
[401026322,1767888650488,-227.192077,0.000249,7]
[401026323,1767888650498,-3000.0,0.0002491,2]
[401026324,1767888650508,-3000.0,0.0002492,2]
[401026325,1767888650518,-3000.0,0.0002493,2]
[401026326,1767888650528,-213.0,0.00024932,15]
[401026327,1767888650538,-3000.0,0.0002494,2]
[401026328,1767888650547,-3000.0,0.0002495,2]
[401026329,1767888650556,-3000.0,0.0002496,2]
[401026330,1767888650566,-3000.0,0.0002497,2]
[401026331,1767888650576,-3000.0,0.0002498,2]
[401026332,1767888650586,-3000.0,0.0002499,2]
[401026333,1767888650595,-3000.0,0.00025,2]
[401026334,1767888650605,-167.0,0.00025,7]
[401026335,1767888650619,-184.0,0.00025,7]
[401026336,1767888650630,-1041.66666667,0.00025,3]
[401026337,1767888650639,-3000.0,0.0002501,2]
[401026338,1767888650649,-3000.0,0.0002502,2]
[401026339,1767888650658,-3000.0,0.0002503,2]
[401026340,1767888650668,-3000.0,0.0002504,2]
[401026341,1767888650677,-3000.0,0.0002505,2]
[401026342,1767888650687,-3000.0,0.0002506,2]
[401026343,1767888650697,-4104.723961,0.0002507,2]
[401026344,1767888650708,-2373.26906487,0.00025193,2]
[401026345,1767888650719,-250.0,0.00025205,2]
[401026346,1767888650729,-2000.0,0.00025248,7]
[401026347,1767888650739,-2373.26906487,0.00025249,2]
[401026348,1767888650748,-5000.0,0.00025302,2]
[401026349,1767888650758,-316.0706166,0.00025557,20]
[401026350,1767888650767,-1371.61920821,0.00025578,2]
[401026351,1767888650777,-1000.0,0.00025588,10]
[401026352,1767888650791,-1000.0,0.00025588,10]
[401026353,1767888650806,-1000.0,0.00025588,10]
[401026354,1767888650815,-715.0,0.00025588,10]
[401026355,1767888650826,-2373.26906487,0.00025655,2]
[401026356,1767888650836,-2000.0,0.00025723,7]
[401026357,1767888650846,-350.0,0.00025753,2]
[401026358,1767888650855,-167.4,0.000258,7]
[401026359,1767888650866,-1041.66666667,0.000258,7]
[401026360,1767888650876,-2373.26906487,0.00025872,2]
[401026361,1767888650886,-167.0,0.0002589,7]
[401026362,1767888650896,-180.03240583,0.00025898,2]
[401026363,1767888650906,-875.15,0.000259,7]
[401026364,1767888650916,-1041.66666667,0.00026,10]
[401026365,1767888650925,-214.0,0.00026027,19]
[401026366,1767888650935,-2373.26906487,0.00026038,2]
[401026367,1767888650945,-476.9,0.00026067,2]
[401026368,1767888650955,-2000.0,0.00026198,7]
[401026369,1767888650965,-450.0,0.00026301,2]
[401026370,1767888650976,-500.0,0.00026348,7]
[401026371,1767888650986,-1200.0,0.00026373,7]
[401026372,1767888650995,-1200.0,0.00026432,7]
[401026373,1767888651005,-2373.26906487,0.00026522,2]
[401026374,1767888651015,-1200.0,0.00026558,7]
[401026375,1767888651024,-163.27,0.000266,7]
[401026376,1767888651036,-164.69,0.000266,7]
[401026377,1767888651046,-1502.08,0.000266,14]
[401026378,1767888651057,-316.0706166,0.00026637,21]
[401026379,1767888651067,-2000.0,0.00026673,7]
[401026380,1767888651077,-1200.0,0.00026693,7]
[401026381,1767888651087,-2373.26906487,0.00026694,2]
[401026382,1767888651096,-35714.28,0.000267,3]
[401026383,1767888651106,-151.0,0.00026744,7]
[401026384,1767888651115,-151.0,0.00026744,7]
[401026385,1767888651125,-151.0,0.00026744,7]
[401026386,1767888651135,-183.558633,0.00026744,7]
[401026387,1767888651144,-183.558633,0.00026744,7]
[401026388,1767888651154,-183.558633,0.00026744,7]
[401026389,1767888651163,-183.558633,0.00026744,7]
[401026390,1767888651173,-151.0,0.00026744,7]
[401026391,1767888651182,-151.0,0.00026744,7]
[401026392,1767888651192,-151.0,0.00026744,7]
[401026393,1767888651202,-5000.0,0.00026747,2]
[401026394,1767888651212,-757.340513,0.00026747,7]
[401026395,1767888651222,-757.340513,0.00026747,7]
[401026396,1767888651231,-757.340513,0.00026747,7]
[401026397,1767888651241,-757.340513,0.00026747,7]
[401026398,1767888651250,-248.949077,0.00026747,7]
[401026399,1767888651259,-248.949077,0.00026747,7]
[401026400,1767888651269,-248.949077,0.00026747,7]
[401026401,1767888651278,-248.949077,0.00026747,7]
[401026402,1767888651289,-151.0,0.00026747,7]
[401026403,1767888651298,-2391.210697,0.00026747,7]
[401026404,1767888651307,-2391.210697,0.00026747,7]
[401026405,1767888651320,-151.0,0.00026747,7]
[401026406,1767888651329,-2391.210697,0.00026747,7]
[401026407,1767888651339,-151.0,0.00026747,7]
[401026408,1767888651348,-2391.210697,0.00026747,7]
[401026409,1767888651358,-212.874628,0.00026747,7]
[401026410,1767888651369,-172.705914,0.00026747,7]
[401026411,1767888651378,-238.415405,0.00026747,7]
[401026412,1767888651390,-172.705914,0.00026747,7]
[401026413,1767888651399,-172.705914,0.00026747,7]
[401026414,1767888651408,-172.705914,0.00026747,7]
[401026415,1767888651418,-151.0,0.00026747,7]
[401026416,1767888651427,-178.75645,0.00026747,7]
[401026417,1767888651437,-151.0,0.00026747,7]
[401026418,1767888651448,-182.749737,0.00026747,7]
[401026419,1767888651457,-182.749737,0.00026747,7]
[401026420,1767888651467,-182.749737,0.00026747,7]
[401026421,1767888651477,-182.749737,0.00026747,7]
[401026422,1767888651486,-500.0,0.00026782,7]
[401026423,1767888651495,-5403.18556089,0.00026811,2]
[401026424,1767888651505,-550.0,0.00026849,2]
[401026425,1767888651514,-20550.55,0.000269,2]
[401026426,1767888651524,-152.763427,0.000269,7]
[401026427,1767888651533,-341.324064,0.000269,7]
[401026428,1767888651543,-341.324064,0.000269,7]
[401026429,1767888651552,-341.324064,0.000269,7]
[401026430,1767888651562,-341.324064,0.000269,7]
[401026431,1767888651571,-522.121584,0.000269,7]
[401026432,1767888651580,-1222.595979,0.000269,7]
[401026433,1767888651589,-522.121584,0.000269,7]
[401026434,1767888651598,-1222.595979,0.000269,7]
[401026435,1767888651608,-522.121584,0.000269,7]
[401026436,1767888651618,-1222.595979,0.000269,7]
[401026437,1767888651627,-1222.595979,0.000269,7]
[401026438,1767888651637,-522.121584,0.000269,7]
[401026439,1767888651646,-500.0,0.00026987,2]
[401026440,1767888651656,-500.0,0.00026987,2]
[401026441,1767888651666,-438.0,0.00026987,2]
[401026442,1767888651675,-500.0,0.00026987,2]
[401026443,1767888651685,-500.0,0.00026987,2]
[401026444,1767888651694,-1200.0,0.00026991,7]
[401026445,1767888651705,-1200.0,0.00027009,7]
[401026446,1767888651714,-218.96,0.00027068,2]
[401026447,1767888651728,-230.27,0.00027068,2]
[401026448,1767888651737,-2373.26906487,0.00027093,2]
[401026449,1767888651747,-151.0,0.00027095,7]
[401026450,1767888651758,-151.0,0.00027095,7]
[401026451,1767888651767,-151.0,0.00027095,7]
[401026452,1767888651777,-151.0,0.00027095,7]
[401026453,1767888651787,-151.0,0.00027095,7]
[401026454,1767888651797,-240.0,0.00027123,23]
[401026455,1767888651807,-500.0,0.00027124,2]
[401026456,1767888651817,-500.0,0.00027124,2]
[401026457,1767888651827,-438.0,0.00027124,2]
[401026458,1767888651836,-500.0,0.00027124,2]
[401026459,1767888651846,-500.0,0.00027124,2]
[401026460,1767888651855,-1200.0,0.00027142,7]
[401026461,1767888651866,-2000.0,0.00027149,7]
[401026462,1767888651875,-875.15,0.000272,7]
[401026463,1767888651885,-500.0,0.00027202,7]
[401026464,1767888651895,-500.0,0.00027213,7]
[401026465,1767888651904,-2373.26906487,0.0002723,2]
[401026466,1767888651914,-500.0,0.00027261,2]
[401026467,1767888651924,-500.0,0.00027261,2]
[401026468,1767888651933,-253.84397327,0.00027261,2]
[401026469,1767888651942,-438.0,0.00027261,2]
[401026470,1767888651952,-500.0,0.00027261,2]
[401026471,1767888651961,-500.0,0.00027261,2]
[401026472,1767888651972,-476.9,0.00027274,2]
[401026473,1767888651982,-4592.0276856,0.00027297,2]
[401026474,1767888651992,-536.35,0.000273,2]
[401026475,1767888652001,-535.54752534,0.00027397,5]
[401026476,1767888652011,-187.84584808,0.00027397,5]
[401026477,1767888652021,-3851.05736369,0.00027397,5]
[401026478,1767888652031,-500.0,0.00027397,5]
[401026479,1767888652040,-500.0,0.00027397,5]
[401026480,1767888652050,-500.0,0.00027397,5]
[401026481,1767888652060,-500.0,0.00027397,5]
[401026482,1767888652069,-500.0,0.00027397,5]
[401026483,1767888652088,-254.68287455,0.00027397,5]
[401026484,1767888652099,-395.86062602,0.00027397,5]
[401026485,1767888652109,-500.0,0.00027397,5]
[401026486,1767888652119,-273.30967942,0.00027397,5]
[401026487,1767888652129,-266.51671478,0.00027397,5]
[401026488,1767888652139,-500.0,0.00027397,5]
[401026489,1767888652148,-500.0,0.00027397,5]
[401026490,1767888652158,-151.0,0.00027397,7]
[401026491,1767888652167,-151.0,0.00027397,7]
[401026492,1767888652177,-151.0,0.00027397,7]
[401026493,1767888652187,-153.716458,0.00027397,7]
[401026494,1767888652196,-500.0,0.00027397,5]
[401026495,1767888652206,-209.74455448,0.00027397,5]
[401026496,1767888652215,-301.01531088,0.00027397,5]
[401026497,1767888652225,-500.0,0.00027397,5]
[401026498,1767888652235,-500.0,0.00027397,5]
[401026499,1767888652245,-507.65379282,0.00027397,5]
[401026500,1767888652255,-315.93211784,0.00027397,5]
[401026501,1767888652264,-203.70594724,0.00027397,5]
[401026502,1767888652275,-478.06035324,0.00027397,5]
[401026503,1767888652285,-500.0,0.00027397,5]
[401026504,1767888652294,-526.68858414,0.00027397,5]
[401026505,1767888652304,-454.58836464,0.00027397,5]
[401026506,1767888652313,-151.0,0.00027397,7]
[401026507,1767888652327,-500.0,0.00027397,5]
[401026508,1767888652336,-151.0,0.00027397,7]
[401026509,1767888652346,-454.68517334,0.00027397,5]
[401026510,1767888652356,-501.8834924,0.00027397,5]
[401026511,1767888652366,-500.0,0.00027397,5]
[401026512,1767888652376,-216.49445658,0.00027397,5]
[401026513,1767888652385,-474.68379948,0.00027397,5]
[401026514,1767888652397,-500.0,0.00027397,5]
[401026515,1767888652407,-505.9524141,0.00027397,5]
[401026516,1767888652416,-500.0,0.00027397,5]
[401026517,1767888652426,-500.0,0.00027397,5]
[401026518,1767888652435,-500.0,0.00027397,5]
[401026519,1767888652445,-500.0,0.00027397,5]
[401026520,1767888652455,-543.25743288,0.00027397,5]
[401026521,1767888652464,-460.4,0.00027397,5]
[401026522,1767888652474,-502.62309958,0.00027397,5]
[401026523,1767888652484,-500.0,0.00027397,5]
[401026524,1767888652493,-500.0,0.00027397,5]
[401026525,1767888652503,-500.0,0.00027397,5]
[401026526,1767888652513,-532.39891321,0.00027397,5]
[401026527,1767888652523,-500.0,0.00027397,5]
[401026528,1767888652532,-226.16698229,0.00027397,5]
[401026529,1767888652542,-500.0,0.00027397,5]
[401026530,1767888652551,-500.0,0.00027397,5]
[401026531,1767888652560,-500.0,0.00027397,5]
[401026532,1767888652570,-500.0,0.00027397,5]
[401026533,1767888652580,-500.0,0.00027397,5]
[401026534,1767888652594,-322.68652047,0.00027397,5]
[401026535,1767888652604,-500.0,0.00027397,5]
[401026536,1767888652614,-532.93989261,0.00027397,5]
[401026537,1767888652624,-500.0,0.00027397,5]
[401026538,1767888652635,-479.89299828,0.00027397,5]
[401026539,1767888652645,-500.0,0.00027397,5]
[401026540,1767888652654,-500.0,0.00027397,5]
[401026541,1767888652664,-500.0,0.00027397,5]
[401026542,1767888652674,-500.0,0.00027397,5]
[401026543,1767888652684,-500.0,0.00027397,5]
[401026544,1767888652694,-573.54037879,0.00027397,5]
[401026545,1767888652704,-500.0,0.00027397,5]
[401026546,1767888652714,-500.0,0.00027397,5]
[401026547,1767888652724,-500.0,0.00027397,5]
[401026548,1767888652735,-500.0,0.00027397,5]
[401026549,1767888652745,-500.0,0.00027397,5]
[401026550,1767888652756,-500.0,0.00027397,5]
[401026551,1767888652767,-500.0,0.00027397,5]